Cogmind - Beta 15 @@@ ROGUE MODE // 2025.06.11 @ 20:32:26 Player: CheifClapdad Result: Destroyed by H-66 Slayer with Gauss Rifle Performance ------------- Evolutions (4) 2000 Regions Visited (11) 2200 Robots Destroyed (99) 495 Value Destroyed (3775) 3775 Prototype IDs (10) 200 Alien Tech Used (0) 0 Bonus (2123) 2123 TOTAL SCORE: 10793 Bonus ------- High Alert Combat Kills 227 Follower Combat Kills 37 Entered DSFs 500 Met Imprinter 300 Destroyed Z-Imprinter 1000 Acquired ECA 300 Friendly Fire -241 Cogmind --------- Core Integrity 0/850 Matter 19/300 Energy 99/100 System Corruption 12% Temperature Cool (0) Movement Core (50) Location -5/Proximity Caves Parts ------- > --- POWER (2) -------- (None) > --- PROPULSION (3) --- (None) > --- UTILITY (6) ------ (None) > --- WEAPON (4) ------- (None) > --- INVENTORY (5) ---- Surveybot 24 Scanner Surveybot 24 Chip Encrypted Comm Array Heavy Missile Launcher CPS Tube (2) Peak State ------------ > --- POWER ------------ Cold Fusion Reactor Zionite Light DM Reactor > --- PROPULSION ------- Flexi-carbon Leg Wheel > --- UTILITY ---------- Improved Heat Sink High-capacity Storage Unit Advanced Signal Interpreter Improved Core Shielding Zionite Light Carapace Improved Hardlight Generator > --- WEAPON ----------- Zionite Laser-M Hypervelocity Gauss Rifle Improved Heavy Machine Gun Heavy Missile Launcher > --- INVENTORY -------- Nuclear Core Improved Heat Sink High-capacity Storage Unit Encrypted Comm Array Transmission Jammer Improved Core Shielding Improved Core Shielding Improved Light Armor Plating Improved Medium Armor Plating High-powered Tractor Beam Battle Rifle Makeshift Shrapnel Gun Improved Heavy Machine Gun Magnetic Acceleration Cannon Magnetic Acceleration Cannon Grenade Launcher Heavy Missile Launcher CPS Tube CPS Tube [Rating: 74] Favorites ----------- Power Cold Fusion Reactor Engine Light Angular Momentum Engine Power Core Nuclear Core Reactor Cold Fusion Reactor Propulsion Wheel Treads Advanced Treads Leg Flexi-carbon Leg Wheel Wheel Utility Improved Heat Sink Device Improved Heat Sink Storage High-capacity Storage Unit Processor Advanced Signal Interpreter Protection Improved Medium Armor Plating Weapon Hypervelocity Gauss Rifle Energy Gun Zionite Laser-M Energy Cannon Cooled Particle Cannon Ballistic Gun Hypervelocity Gauss Rifle Ballistic Cannon Light Cannon Launcher Grenade Launcher Special Weapon CPS Tube Special Melee Weapon Datajack Build | -11 -10 -9 -8 -7 -7 -6 -6 -6 -6 -6 -5 ------- Run | Yrd Mat Mat Mat Fac DSF Fac Low Low Zio Dee Pro Slots Evolved 8 | . . 2 2 2 . 2 . . . . . Power 1 | . . . . 1 . . . . . . . Propulsion 1 | . . . 1 . . . . . . . . Utility 4 | . . . 1 1 . 2 . . . . . Weapon 2 | . . 2 . . . . . . . . . Parts Attached 93 | 6 3 8 9 1 12 29 6 6 1 8 4 Power 14 | 1 . 1 1 . 2 5 . 2 . 2 . Engine 9 | 1 . 1 1 . 1 3 . 2 . . . Core 3 | . . . . . 1 1 . . . 1 . Reactor 2 | . . . . . . 1 . . . 1 . Propulsion 19 | 2 1 3 2 . . 8 . 2 1 . . Treads 9 | . 1 3 2 . . 2 . 1 . . . Leg 5 | . . . . . . 3 . 1 1 . . Wheel 5 | 2 . . . . . 3 . . . . . Hover . | . . . . . . . . . . . . Flight . | . . . . . . . . . . . . Utility 28 | 1 2 . 2 1 4 9 3 1 . 4 1 Device 11 | . . . 1 1 2 5 . 1 . 1 . Storage 3 | 1 1 . 1 . . . . . . . . Processor 1 | . . . . . . . 1 . . . . Hackware . | . . . . . . . . . . . . Protection 13 | . 1 . . . 2 4 2 . . 3 1 Artifact . | . . . . . . . . . . . . Weapon 32 | 2 . 4 4 . 6 7 3 1 . 2 3 Energy Gun 2 | . . . 1 . . . . . . 1 . Energy Cannon 3 | . . . 2 . 1 . . . . . . Ballistic Gun 18 | 2 . 1 1 . 3 7 3 . . . 1 Ballistic Cannon 3 | . . 2 . . . . . . . . 1 Launcher 3 | . . 1 . . 1 . . 1 . . . Special Weapon 2 | . . . . . . . . . . 1 1 Impact Weapon . | . . . . . . . . . . . . Slashing Weapon . | . . . . . . . . . . . . Piercing Weapon . | . . . . . . . . . . . . Special Melee Weapon 1 | . . . . . 1 . . . . . . Unidentified Prototypes 10 | . . . 2 . . 4 . . . 4 . Parts Lost 35 | . 2 1 . . 4 10 5 1 . 4 8 Power 6 | . . . . . 1 2 . 1 . 1 1 Propulsion 11 | . 1 1 . . 1 3 3 . . 1 1 Utility 7 | . 1 . . . . 2 . . . 1 3 Weapon 11 | . . . . . 2 3 2 . . 1 3 Highest Loss Streak 8 | . 1 1 . . 4 4 3 1 . 2 8 To Critical Strikes . | . . . . . . . . . . . . Average Backups 17 | 2 10 12 14 17 18 18 19 19 20 18 17 Power . | . 1 1 . . . . 1 1 1 . . Propulsion . | 1 1 . 2 3 2 2 . . . . . Utility 8 | . 3 6 6 9 11 9 8 8 8 7 7 Weapon 5 | . 3 2 4 4 3 5 7 6 7 7 6 Tool/Special . | . . . . . . . . . . . . Unused Backups 38 | . 4 2 4 . 8 6 4 . . . 10 Power . | . . . . . . . . . . . . Propulsion 5 | . . . 2 . . 3 . . . . . Utility 21 | . 3 1 1 . 7 2 3 . . . 4 Weapon 10 | . 1 1 1 . 1 1 1 . . . 4 Tool/Special 2 | . . . . . . . . . . . 2 Average Slot Usage (%) 95 | . 93 99 99 92 94 98 97 86 100 94 79 Engine 5 | . 14 11 9 7 6 8 . . 6 1 . Core 2 | . . . . . 4 1 6 4 . 3 4 Reactor 4 | . . . . . . 2 6 6 6 6 5 Treads 7 | . 6 19 27 23 23 14 5 . 1 . . Leg 4 | . . . . . . 1 . . 11 7 5 Wheel 5 | . 19 2 . . . 3 11 6 6 6 4 Device 14 | . . . 8 15 17 25 17 13 13 13 11 Storage 6 | . 14 11 9 7 7 6 6 6 6 6 5 Processor 3 | . . . . . . . 5 6 6 6 5 Protection 10 | . 9 11 9 7 4 6 8 13 13 13 11 Energy Cannon 3 | . . . 16 15 15 8 . . . . . Ballistic Gun 21 | . 28 24 18 15 10 17 25 25 26 19 16 Peak Build Rating 74 | 6 10 18 35 38 48 65 63 69 69 74 69 Average Rating 55 | 4 7 12 33 38 42 59 59 59 68 67 59 On Entrance 39 | . 6 10 18 35 38 48 58 58 69 69 68 Naked Turns 86 | . . . . . . . . . . . 86 Heaviest Build 107 | 10 30 40 73 70 92 107 88 90 90 97 94 Greatest Support 66 | 20 20 44 66 66 66 66 20 10 10 10 10 Greatest Overweight (x) 10 | . 2 3 1 1 1 10 8 8 8 9 9 Average Overweight (x) 5 | . 1 . . 1 . 2 4 8 8 8 5 Largest Inventory Capacity 20 | 8 15 15 20 20 20 20 20 20 20 20 20 Average Capacity 19 | 6 14 15 18 20 20 20 20 20 20 20 17 Most Carried 20 | 4 15 15 19 18 20 20 20 20 20 20 20 Average Carried 18 | 2 11 13 15 18 19 19 19 19 20 18 17 Final Capacity 20 | 8 15 15 20 20 20 20 20 20 20 20 5 Final Carried 20 | 4 15 15 19 18 20 20 19 20 20 19 5 Class Distribution -------------------- 47% | Tank 27% | Derelict-Tank 17% | Scavenger-Tank 6% | Mutant Dominant Class ---------------- Mutant | -10/Materials Tank | -9/Materials Tank | -8/Materials Tank | -7/Factory Scavenger-Tank | -7/DSF Tank | -6/Factory Scavenger-Tank | -6/Lower Caves Tank | -6/Lower Caves Derelict-Tank | -6/Zion Tank | -6/Deep Caves Tank | -5/Proximity Caves Resources | -11 -10 -9 -8 -7 -7 -6 -6 -6 -6 -6 -5 ----------- Run | Yrd Mat Mat Mat Fac DSF Fac Low Low Zio Dee Pro Matter Collected 3586 | 94 232 253 189 . 197 1518 547 314 10 182 50 Remotely 320 | . . . . . . . . 162 10 148 . Salvage Created 4487 | . 280 251 356 . 451 2299 507 177 . 125 41 Parts 221 | . 12 23 14 . 29 108 21 9 . 5 . Haulers Intercepted 2 | . . . . . . 2 . . . . . Recyclers Shooed 3 | . . . . . . 3 . . . . . Parts Field Recycled . | . . . . . . . . . . . . Retrieved Matter . | . . . . . . . . . . . . Parts Self-Destructed 27 | . . . . . . . 20 7 . . . Prevented . | . . . . . . . . . . . . Kills | -11 -10 -9 -8 -7 -7 -6 -6 -6 -6 -6 -5 ------- Run | Yrd Mat Mat Mat Fac DSF Fac Low Low Zio Dee Pro Combat Hostiles Destroyed 85 | . 6 12 5 . 11 34 9 3 . 4 1 Guns 54 | . 6 3 3 . 2 25 9 2 . 4 . Cannons 19 | . . 2 2 . 6 8 . . . . 1 AOE 12 | . . 7 . . 3 1 . 1 . . . Classes Destroyed 17 | . 1 4 3 . 3 3 . . . 2 1 Worker 6 | . . 1 . . . 5 . . . . . Builder 4 | . . . . . . 4 . . . . . Hauler 2 | . . . . . . 2 . . . . . Recycler 3 | . . . 2 . . 1 . . . . . Operator 1 | . . . 1 . . . . . . . . Swarmer 23 | . . 8 1 . 4 5 2 3 . . . Grunt 35 | . 6 2 1 . 3 17 6 . . . . Brawler 3 | . . 1 1 . . 1 . . . . . Duelist 3 | . . . . . . 3 . . . . . Sentry 5 | . . 1 1 . . 2 1 . . . . Specialist 2 | . . . . . 2 . . . . . . Hunter 3 | . . . 1 . . 2 . . . . . Programmer 4 | . . . . . 1 3 . . . . . Heavy 2 | . . . . . 1 1 . . . . . Behemoth 1 | . . . . . . . . . . . 1 Z-Light 1 | . . . . . . . . . . 1 . Assembled 3 | . . . . . . . . . . 3 . Savage 1 | . . . . . . . 1 . . . . Best Kill Streak 8 | . 2 5 6 . 8 5 5 3 . 2 1 Combat Bots Only 8 | . 2 4 3 . 8 5 5 3 . 2 1 Max Kills in Single Turn 5 | . 1 5 2 . 2 3 2 1 . 1 1 Gunslinging 1 | . . . . . . . 1 . . . . Exploded 4 | . . 4 . . 2 1 . 1 . . . Melee . | . . . . . . . . . . . . Uniques/NPCs Destroyed 1 | . . . . . . . . . . 1 . Z-Imprinter (-6/Deep Caves) Combat | -11 -10 -9 -8 -7 -7 -6 -6 -6 -6 -6 -5 -------- Run | Yrd Mat Mat Mat Fac DSF Fac Low Low Zio Dee Pro Hostile Shots Fired 560 | . 41 40 11 . 98 195 66 13 . 19 77 Missed 164 | . 13 7 5 . 35 50 19 6 . 7 22 Hits 396 | . 28 33 6 . 63 145 47 7 . 12 55 Melee 19 | . . 4 . . . 9 . . . 2 4 Projectile 377 | . 28 29 6 . 63 136 47 7 . 10 51 AOE 2 | . . . . . . 2 . . . . . Critical Strikes 13 | . 1 1 . . 2 4 2 . . . 3 Damage Taken 7586 | . 400 407 316 . 1279 2236 927 97 . 790 1134 Core 1080 | . 94 33 . . 89 258 152 13 . 165 276 Absorbed by Shields 811 | . . . . . . 547 . . . 12 252 Redirected to Shielding 120 | . . . . . . . 16 5 . 69 30 Core Remaining (%) 88 | 100 62 91 100 . 87 . . . . . . Volleys Fired 233 | . 30 22 14 . 25 78 30 5 . 13 16 Largest 4 | . 2 4 4 . 4 4 4 4 . 4 4 Hottest 228 | . 40 100 228 . 228 179 106 120 . 145 165 Shots Fired 795 | . 60 74 56 . 78 292 113 20 . 46 56 Gun 586 | . 60 44 28 . 29 208 113 19 . 45 40 Cannon 198 | . . 26 28 . 45 83 . . . . 16 Launcher 10 | . . 4 . . 4 1 . 1 . . . Special 1 | . . . . . . . . . . 1 . Kinetic 614 | . 60 70 28 . 29 208 113 19 . 39 48 Thermal 170 | . . . 28 . 45 83 . . . 6 8 Explosive 10 | . . 4 . . 4 1 . 1 . . . Electromagnetic . | . . . . . . . . . . . . Robot Hit Streak 13 | . 11 13 8 . 7 8 7 4 . 3 8 Robot Miss Streak 8 | . 3 5 2 . 4 8 7 3 . 6 3 Penetration Max 3 | . . . . . . 3 1 1 . 1 . Secondary Targets 7 | . 1 . . . . 3 3 . . . . Max Gunslinging Chain 2 | . 1 . . . . 1 2 . . . . Shots Hit Robots 462 | . 43 37 29 . 44 178 73 6 . 14 38 Core Hits 302 | . 19 21 10 . 23 164 45 7 . 7 6 Critical Kills 17 | . . . 1 . . 13 . 2 . 1 . Critical Parts Destroyed 20 | . 1 1 . . . 13 3 . . 1 1 Critical Strikes 45 | . 1 2 1 . . 27 3 2 . 3 6 Destroy 43 | . 1 1 1 . . 27 3 2 . 3 5 Blast 2 | . . 1 . . . . . . . . 1 Melee Attacks . | . . . . . . . . . . . . Impact . | . . . . . . . . . . . . Slashing . | . . . . . . . . . . . . Piercing . | . . . . . . . . . . . . Sneak Attacks . | . . . . . . . . . . . . Combat Hostiles . | . . . . . . . . . . . . Follow-up Attacks . | . . . . . . . . . . . . Damage Inflicted 10679 | . 339 803 865 . 1433 4451 1290 167 . 281 1050 Guns 5740 | . 339 201 148 . 334 2398 1290 94 . 281 655 Cannons 3317 | . . 232 518 . 774 1398 . . . . 395 Explosions 1603 | . . 370 199 . 325 636 . 73 . . . Melee . | . . . . . . . . . . . . Ramming 19 | . . . . . . 19 . . . . . Kinetic 5973 | . 339 433 148 . 334 2398 1290 94 . 145 792 Thermal 3919 | . . . 717 . 774 2034 . . . 136 258 Explosive 768 | . . 370 . . 325 . . 73 . . . Electromagnetic . | . . . . . . . . . . . . Impact . | . . . . . . . . . . . . Slashing . | . . . . . . . . . . . . Piercing . | . . . . . . . . . . . . Highest Corruption 12 | . . . . . . 4 4 4 4 . 12 Average Corruption 3 | . . . . . . 2 4 4 4 . 11 Corruption Purged . | . . . . . . . . . . . . Corruption Blocked . | . . . . . . . . . . . . Effects 88 | . . . . . . 30 21 37 . . . Message Errors 18 | . . . . . . 7 5 6 . . . Matter Fused 25 | . . . . . . 7 6 12 . . . Heat Flow Errors 4 | . . . . . . 1 . 3 . . . Energy Discharges 8 | . . . . . . 2 3 3 . . . Parts Fused 3 | . . . . . . 2 . 1 . . . Data Loss (minor) 13 | . . . . . . 5 2 6 . . . Data Loss (major) 3 | . . . . . . 1 . 2 . . . Misfires 7 | . . . . . . 3 1 3 . . . Alerts 2 | . . . . . . 1 1 . . . . Weapon Failures 5 | . . . . . . 1 3 1 . . . Overload Shots 9 | . . . 2 . 4 3 . . . . . Effects 2 | . . . 1 . . 1 . . . . . Heat Surge 1 | . . . . . . 1 . . . . . Short Circuit 1 | . . . 1 . . . . . . . . Overflow Damage 385 | . . 1 82 . 18 284 . . . . . Projectiles 105 | . . . 72 . 18 15 . . . . . Explosions 280 | . . 1 10 . . 269 . . . . . Melee . | . . . . . . . . . . . . Knockbacks 1 | . . 1 . . . . . . . . . Impact . | . . . . . . . . . . . . Kinetic 1 | . . 1 . . . . . . . . . Secondary . | . . . . . . . . . . . . Self-Inflicted Damage 300 | . . . 228 . 18 54 . . . . . Shots 4 | . . . 2 . 1 1 . . . . . Rammed 2 | . . . . . . 2 . . . . . Targets Rammed 2 | . . . . . . 2 . . . . . Kicked . | . . . . . . . . . . . . Crushed . | . . . . . . . . . . . . Highest Temperature 335 | . 29 335 108 . 140 94 221 193 . 36 256 Average Temperature 80 | . 10 142 16 . 34 34 109 77 . 19 142 Received Heat Transfer 1688 | . 246 114 18 . 81 545 354 . . 90 240 Effects 3 | . . 3 . . . . . . . . . Energy Bleed 2 | . . 2 . . . . . . . . . Matter Decay 1 | . . 1 . . . . . . . . . Siege Activations . | . . . . . . . . . . . . Martial Activations . | . . . . . . . . . . . . Shielding Activations . | . . . . . . . . . . . . Robots Disrupted . | . . . . . . . . . . . . Combat Hostiles . | . . . . . . . . . . . . Robots Corrupted . | . . . . . . . . . . . . Combat Hostiles . | . . . . . . . . . . . . Parts Fried . | . . . . . . . . . . . . Impact Corruptions . | . . . . . . . . . . . . Robots Melted 1 | . . . . . 1 . . . . . . Combat Hostiles . | . . . . . . . . . . . . Parts Melted 1 | . . . . . . 1 . . . . . Heat Transferred 4439 | . . . 755 . 988 2289 . . . 148 259 Parts Sabotaged . | . . . . . . . . . . . . Parts Stolen . | . . . . . . . . . . . . Parts Stripped . | . . . . . . . . . . . . Power Chain Reactions . | . . . . . . . . . . . . Alert | -11 -10 -9 -8 -7 -7 -6 -6 -6 -6 -6 -5 ------- Run | Yrd Mat Mat Mat Fac DSF Fac Low Low Zio Dee Pro Maximum Alert Level 2 | . . 1 . . 1 2 . . . . . Low Security (%) 63 | 100 100 68 100 100 61 37 . . . . . Level 1 12 | . . 31 . . 38 11 . . . . . Level 2 23 | . . . . . . 50 . . . . . Level 3 . | . . . . . . . . . . . . Level 4 . | . . . . . . . . . . . . Level 5 . | . . . . . . . . . . . . High Security . | . . . . . . . . . . . . Max Security . | . . . . . . . . . . . . Sterilizations 1 | . . . . . 1 . . . . . . Peak Influence 694 | . 70 274 132 36 247 694 . . . . . Initial 129 | . . . 74 36 . 129 . . . . . Average 184 | . 17 132 39 17 113 321 . . . . . Influence Increases 2829 | . 197 409 286 . 278 1239 265 80 . . 75 Destroy 0b10 Robot/C 1620 | . 120 240 100 . 220 680 180 60 . . 20 Destroy 0b10 Robot/NC 100 | . . 5 15 . 10 60 . 10 . . . Destroy Leader 344 | . 30 40 30 . 40 174 10 10 . . 10 Successful Hack 22 | . 17 5 . . . . . . . . . Disable Machine 315 | . . 45 90 . . 180 . . . . . Destroy Structure 128 | . . 29 36 . 8 55 . . . . . Lose Combat Pursuer 300 | . 30 45 15 . . 90 75 . . . 45 Influence Decreases 2808 | . 197 231 383 81 31 796 710 325 . . 54 Entered New Map 570 | . . . 104 45 . 118 256 47 . . . Time Decay 2007 | . 187 221 279 36 . 578 404 278 . . 24 Lost Part 231 | . 10 10 . . 31 100 50 . . . 30 Squads Dispatched 17 | . . 1 3 . 2 11 . . . . . Investigation 2 | . . 1 . . . 1 . . . . . Extermination 3 | . . . . . . 3 . . . . . Reinforcement 8 | . . . 1 . 2 5 . . . . . Assault 1 | . . . . . . 1 . . . . . Garrison 3 | . . . 2 . . 1 . . . . . Intercept . | . . . . . . . . . . . . Searches Triggered . | . . . . . . . . . . . . Construction Impeded 2 | . . . . . . 2 . . . . . Haulers Reinforced 1 | . . . . . . 1 . . . . . Active Scanning Responses . | . . . . . . . . . . . . Cargo Convoy Interrupts . | . . . . . . . . . . . . Stealth | -11 -10 -9 -8 -7 -7 -6 -6 -6 -6 -6 -5 --------- Run | Yrd Mat Mat Mat Fac DSF Fac Low Low Zio Dee Pro Distress Signals 6 | . 1 2 2 . . 1 . . . . . Communications Jammed 3 | . . . . . . 3 . . . . . Distress Signals 3 | . . . . . . 3 . . . . . Times Spotted 130 | . 10 18 14 . 12 48 13 3 . 6 6 Peak Tracking Total 6 | . 3 5 5 . 4 6 6 3 . 3 4 Tactical Retreats 18 | . 2 2 1 . . 6 5 . . . 2 Traps | -11 -10 -9 -8 -7 -7 -6 -6 -6 -6 -6 -5 ------- Run | Yrd Mat Mat Mat Fac DSF Fac Low Low Zio Dee Pro Traps Triggered 3 | . 1 . . . 2 . . . . . . Indirectly . | . . . . . . . . . . . . Trap Hack Attempts 6 | . . . . . 6 . . . . . . Triggered . | . . . . . . . . . . . . Disarmed 1 | . . . . . 1 . . . . . . Reprogrammed . | . . . . . . . . . . . . Reused . | . . . . . . . . . . . . Traps Extracted . | . . . . . . . . . . . . Installed . | . . . . . . . . . . . . Triggered . | . . . . . . . . . . . . Machines | -11 -10 -9 -8 -7 -7 -6 -6 -6 -6 -6 -5 ---------- Run | Yrd Mat Mat Mat Fac DSF Fac Low Low Zio Dee Pro Machines Disabled 25 | . . 3 6 . . 12 1 . . 3 . Max in Single Turn 10 | . . 1 2 . . 10 1 . . 1 . Machines Repaired . | . . . . . . . . . . . . Machines Dismantled . | . . . . . . . . . . . . Machines Sabotaged . | . . . . . . . . . . . . Overloaded Fab Kills . | . . . . . . . . . . . . Hacking | -11 -10 -9 -8 -7 -7 -6 -6 -6 -6 -6 -5 --------- Run | Yrd Mat Mat Mat Fac DSF Fac Low Low Zio Dee Pro Machines Accessed 9 | . 3 1 . 1 . 2 2 . . . . Terminals 6 | . 2 1 . 1 . 1 1 . . . . Fabricators . | . . . . . . . . . . . . Repair Stations 1 | . 1 . . . . . . . . . . Recycling Units . | . . . . . . . . . . . . Scanalyzers . | . . . . . . . . . . . . Garrison Access 1 | . . . . . . 1 . . . . . Total Hacks 24 | . 10 4 . 2 . 3 5 . . . . Successful 12 | . 4 1 . 1 . 1 5 . . . . Failed 12 | . 6 3 . 1 . 2 . . . . . Catastrophic 3 | . . 1 . . . 2 . . . . . Database Lockouts . | . . . . . . . . . . . . Manual 17 | . 6 4 . . . 1 . . 6 . . Terminals 17 | . 6 4 . 2 . 1 4 . . . . Fabricators . | . . . . . . . . . . . . Repair Stations 4 | . 4 . . . . . . . . . . Recycling Units . | . . . . . . . . . . . . Scanalyzers . | . . . . . . . . . . . . Garrison Access 2 | . . . . . . 2 . . . . . Terminal Hacks 8 | . 1 . . 1 . 1 5 . . . . Record 4 | . . . . . . . 4 . . . . Open Door 1 | . . . . . . . 1 . . . . Open DSF 1 | . . . . 1 . . . . . . . Branch Access Points 2 | . 1 . . . . 1 . . . . . Fabricator Hacks . | . . . . . . . . . . . . Repair Station Hacks 1 | . 1 . . . . . . . . . . Refit 1 | . 1 . . . . . . . . . . Recycling Unit Hacks . | . . . . . . . . . . . . Scanalyzer . | . . . . . . . . . . . . Garrison Access Hacks . | . . . . . . . . . . . . Unauthorized Hacks 3 | . 2 1 . . . . . . . . . Terminals 3 | . 2 1 . . . . . . . . . Botnet 3 | . 2 1 . . . . . . . . . Fabricators . | . . . . . . . . . . . . Repair Stations . | . . . . . . . . . . . . Recycling Units . | . . . . . . . . . . . . Scanalyzers . | . . . . . . . . . . . . Garrison Access . | . . . . . . . . . . . . Data Cores Recovered 1 | . . . 1 . . . . . . . . Used . | . . . . . . . . . . . . Hacking Detections 7 | . 3 1 . 1 . 1 1 . . . . Full Trace Events 4 | . 1 1 . . . 1 1 . . . . Feedback Events . | . . . . . . . . . . . . Feedback Blocked . | . . . . . . . . . . . . Robot Schematics Acquired . | . . . . . . . . . . . . Robots Built . | . . . . . . . . . . . . Authchips . | . . . . . . . . . . . . Time . | . . . . . . . . . . . . Total Robot Build Rating . | . . . . . . . . . . . . Part Schematics Acquired . | . . . . . . . . . . . . Parts Built . | . . . . . . . . . . . . Authchips . | . . . . . . . . . . . . Time . | . . . . . . . . . . . . Total Part Build Rating . | . . . . . . . . . . . . Parts Repaired . | . . . . . . . . . . . . Time . | . . . . . . . . . . . . Parts Recycled . | . . . . . . . . . . . . Recycled Matter . | . . . . . . . . . . . . Retrieved Matter . | . . . . . . . . . . . . Retrieved Components . | . . . . . . . . . . . . Parts Scanalyzed . | . . . . . . . . . . . . Part Schematics Acquired . | . . . . . . . . . . . . Parts Damaged . | . . . . . . . . . . . . Bothacking | -11 -10 -9 -8 -7 -7 -6 -6 -6 -6 -6 -5 ------------ Run | Yrd Mat Mat Mat Fac DSF Fac Low Low Zio Dee Pro Used RIF Installer . | . . . . . . . . . . . . Robots Hacked . | . . . . . . . . . . . . Non-combat . | . . . . . . . . . . . . Combat . | . . . . . . . . . . . . Robot Hacks Applied . | . . . . . . . . . . . . Relay Couplers Released . | . . . . . . . . . . . . Fabnet Peak Effective % . | . . . . . . . . . . . . Robots Rewired . | . . . . . . . . . . . . Allies Hacked . | . . . . . . . . . . . . Hacks Repelled . | . . . . . . . . . . . . Allies | -11 -10 -9 -8 -7 -7 -6 -6 -6 -6 -6 -5 -------- Run | Yrd Mat Mat Mat Fac DSF Fac Low Low Zio Dee Pro Total Allies 2 | . . . . . . . . . 2 . . Largest Group 2 | . . . . . . . . . 2 2 . Highest-Rated Group 192 | . . . . . . . . . 192 192 . Highest-Rated Ally 96 | . . . . . . . . . 96 96 . Initial Warlord ECA Mod 53 | . . . . . . 9 9 9 9 9 8 Total Orders . | . . . . . . . . . . . . Ally Attacks 26 | . . . . . . . . . . 26 . Total Damage 1037 | . . . . . . . . . . 1037 . Kills 7 | . . . . . . . . . . 7 . Allies Corrupted . | . . . . . . . . . . . . Allies Melted . | . . . . . . . . . . . . Intel | -11 -10 -9 -8 -7 -7 -6 -6 -6 -6 -6 -5 ------- Run | Yrd Mat Mat Mat Fac DSF Fac Low Low Zio Dee Pro Active Infowar (turns) 1437 | . . . . 96 260 899 182 . . . . Sensors 356 | . . . . 96 260 . . . . . . Jamming 1081 | . . . . . . 899 182 . . . . Robot Analysis Total . | . . . . . . . . . . . . Derelict Logs Recovered 4 | . . . . . . . 1 1 . . 2 Drone Launches . | . . . . . . . . . . . . Drone Recoveries . | . . . . . . . . . . . . Exploration | -11 -10 -9 -8 -7 -7 -6 -6 -6 -6 -6 -5 ------------- Run | Yrd Mat Mat Mat Fac DSF Fac Low Low Zio Dee Pro Turns Passed 12355 | 81 589 531 887 96 430 2322 961 1450 2694 1692 622 Spaces Moved 6164 | 87 378 296 412 43 138 996 576 712 1347 784 395 Core 177 | 4 . . . . . . . . . . 173 Treads 1539 | . 68 226 412 43 138 652 . . . . . Legs 5 | . . . . . . 5 . . . . . Wheels 4443 | 83 310 70 . . . 339 576 712 1347 784 222 Hover . | . . . . . . . . . . . . Flight . | . . . . . . . . . . . . Fastest Speed 50 | 50 80 125 145 225 145 140 140 200 200 200 50 Average Speed 184 | 78 123 151 196 225 223 199 146 200 200 208 142 Slowest Speed 330 | 80 240 160 225 225 225 330 200 200 200 215 215 Overloaded Moves . | . . . . . . . . . . . . Propulsion Burnouts . | . . . . . . . . . . . . Robots Hopped . | . . . . . . . . . . . . Potential Cave-ins . | . . . . . . . . . . . . Cave-ins Triggered . | . . . . . . . . . . . . Exploration Rate (%) 43 | 4 68 29 28 1 91 20 42 71 62 60 42 Regions Visited 11 Branch Regions 5 Pre-discovered Areas 1 | . . . . . . . 1 . . . . Known Exits Taken 6 | . . . . 1 . 1 1 1 1 1 . Unknown Exits Taken 4 | 1 1 1 1 . . . . . . . . Scrap Searched 9 | . . . . . . . 1 4 3 . 1 Spaces Dug . | . . . . . . . . . . . . Terrain Destroyed 142 | . . 24 35 . 8 61 2 6 . 2 4 Melee . | . . . . . . . . . . . . Projectile 24 | . . . 4 . 2 12 . . . 2 4 AOE 115 | . . 24 31 . 6 48 . 6 . . . Terrain Rammed . | . . . . . . . . . . . . Walls Destroyed . | . . . . . . . . . . . . Machines Disabled . | . . . . . . . . . . . . Actions | -11 -10 -9 -8 -7 -7 -6 -6 -6 -6 -6 -5 --------- Run | Yrd Mat Mat Mat Fac DSF Fac Low Low Zio Dee Pro Total 6695 | 96 452 338 461 43 214 1157 630 725 1348 814 417 Wait 26 | . 19 . 1 . 4 . 1 . . 1 . Move 6153 | 86 377 295 411 42 137 995 575 711 1346 783 395 Hop . | . . . . . . . . . . . . Pick Up 83 | 4 15 5 12 . 14 22 7 1 . 2 1 Fast Attach 46 | 6 5 1 4 . 6 12 4 3 1 4 . Attach 33 | . 1 3 3 1 3 14 2 . . 3 3 Detach 2 | . . . . . . 2 . . . . . Swap 34 | . . 6 3 . 5 9 2 4 . 3 2 Drop 76 | . 5 6 13 . 14 23 9 1 1 4 . Fire 233 | . 30 22 14 . 25 78 30 5 . 13 16 Melee . | . . . . . . . . . . . . Ram 1 | . . . . . . 1 . . . . . Kick . | . . . . . . . . . . . . Crush 1 | . . . . . . 1 . . . . . Escape Stasis . | . . . . . . . . . . . . Rewire 1 | . . . . . . . . . . 1 . Trap 6 | . . . . . 6 . . . . . . Miscellaneous . | . . . . . . . . . . . . Route ------- -11/Scrapyard -10/Materials (discovered 2 exits: *Mat / *Min) -9/Materials -8/Materials -7/Factory -7/DSF -6/Factory (discovered 4 exits: *Low x2 / Ext x2) -6/Lower Caves -6/Lower Caves -6/Zion -6/Deep Caves -5/Proximity Caves History --------- Turn | Location | Event 34 | -11/Scrapyard | Discovered new exit (range 15) 82 | -11/Scrapyard | Entered Materials 94 | -10/Materials | Identified exit to Mines 304 | -10/Materials | Build established: Mutant 658 | -10/Materials | Discovered new exit (range 8) 671 | -10/Materials | Entered another Materials area 671 | -9/Materials | Evolved 2 slots: Weapon x2 977 | -9/Materials | Build established: Tank 1165 | -9/Materials | Discovered new exit (range 4) 1202 | -9/Materials | Entered another Materials area 1202 | -8/Materials | Evolved 2 slots: Propulsion x1, Utility x1 1630 | -8/Materials | Discovered new exit (range 13) 1972 | -8/Materials | Garrison activated, responded to threat 2089 | -8/Materials | Entered Factory 2089 | -7/Factory | Evolved 2 slots: Power x1, Utility x1 2183 | -7/Factory | Identified exit to DSF 2185 | -7/Factory | Entered DSF 2235 | -7/DSF | Additional patrols routed to DSF 2379 | -7/DSF | Lost 4 parts (1p1n2w) 2456 | -7/DSF | Sterilization system engaged 2473 | -7/DSF | Destroyed 8 combat bots 2476 | -7/DSF | Ambient heat levels rising (+10) 2491 | -7/DSF | Ambient heat levels rising (+10) 2506 | -7/DSF | Ambient heat levels rising (+10) 2521 | -7/DSF | Ambient heat levels rising (+10) 2536 | -7/DSF | Ambient heat levels rising (+10) 2551 | -7/DSF | Ambient heat levels rising (+10) 2560 | -7/DSF | Discovered new exit (range 16) 2566 | -7/DSF | Ambient heat levels rising (+10) 2581 | -7/DSF | Ambient heat levels rising (+10) 2596 | -7/DSF | Ambient heat levels rising (+10) 2611 | -7/DSF | Ambient heat levels rising (+10) 2615 | -7/DSF | Entered Factory 2615 | -6/Factory | Evolved 2 slots: Utility x2 3749 | -6/Factory | Build established: Scavenger-Tank 4345 | -6/Factory | Build established: Tank 4365 | -6/Factory | First assault squad dispatched 4665 | -6/Factory | Lost 4 parts (1n1u2w) 4734 | -6/Factory | Identified exit to Lower Caves 4734 | -6/Factory | Identified exit to Extension 4861 | -6/Factory | Garrison activated, responded to threat 4928 | -6/Factory | Build established: Scavenger-Tank 4937 | -6/Factory | Entered Lower Caves 4943 | -6/Lower Caves | Met a Warlord Commander 4944 | -6/Lower Caves | Learned location of Warlord (-4) 4945 | -6/Lower Caves | Warlord Commander delivered Encrypted Comm Array 4955 | -6/Lower Caves | Found Encrypted Comm Array 5072 | -6/Lower Caves | Attracted the attention of an 0b10 base 5185 | -6/Lower Caves | Learned location of 1 exit from Research 5714 | -6/Lower Caves | Discovered new exit (range 14) 5799 | -6/Lower Caves | Lost 3 parts (2n1w) 5856 | -6/Lower Caves | Identified exit to Lower Caves 5898 | -6/Lower Caves | Entered another Lower Caves area 6039 | -6/Lower Caves | Build established: Tank 6876 | -6/Lower Caves | Learned Factory emergency access door positions 7164 | -6/Lower Caves | Found DCF Scrap (13 items) 7284 | -6/Lower Caves | Discovered new exit (range 12) 7306 | -6/Lower Caves | Identified exit to Zion 7348 | -6/Lower Caves | Entered Zion 7386 | -6/Zion | Given A8's code to call for help 7416 | -6/Zion | System corruption cleaned by Quarantine Array 7467 | -6/Zion | Build established: Derelict-Tank 7752 | -6/Zion | Met Imprinter 9228 | -6/Zion | Acquired unknown access codes intercepted by a Zionite 9826 | -6/Zion | Enhanced Grunt warped into view, answering call for help 9837 | -6/Zion | Enhanced Grunt warped into view, answering call for help 9856 | -6/Zion | Opened final containment barrier to the Deep Caves 9894 | -6/Zion | Discovered new exit (range 3) 9894 | -6/Zion | Saw the warning signs outside the Deep Caves entrance 9900 | -6/Zion | Identified exit to Deep Caves 10042 | -6/Zion | Entered Deep Caves 10042 | -6/Deep Caves | Accompanied by 2 allies 10461 | -6/Deep Caves | Z-Facility disabled 10483 | -6/Deep Caves | Attacked by Z-Imprinter 10490 | -6/Deep Caves | Core integrity fell below 50% 10499 | -6/Deep Caves | Allies destroyed Z-Imprinter 10543 | -6/Deep Caves | Found Prototype Protection 10543 | -6/Deep Caves | Identified Zio. Weapon Casing 10984 | -6/Deep Caves | Build established: Tank 11294 | -6/Deep Caves | Found Unknown Processor 11299 | -6/Deep Caves | Found Surveybot 24 Scanner 11717 | -6/Deep Caves | Discovered new exit (range 6) 11732 | -6/Deep Caves | Identified exit to Proximity Caves 11734 | -6/Deep Caves | Entered Proximity Caves 11882 | -5/Proximity Caves | Learned Factory stockpile data 12211 | -5/Proximity Caves | Spotted B-75 Beast 12255 | -5/Proximity Caves | Destroyed B-75 Beast 12267 | -5/Proximity Caves | Core integrity fell below 20% 12267 | -5/Proximity Caves | System corruption reached 10% 12270 | -5/Proximity Caves | Released all parts (9) 12297 | -5/Proximity Caves | Lost 8 parts (1p1n3u3w) 12332 | -5/Proximity Caves | Learned 4 Factory zone layouts 12356 | -5/Proximity Caves | Destroyed by H-66 Slayer with Gauss Rifle Last Messages --------------- 12261_ Hyp. Gauss Rifle destroyed. 12266_ Imp. Heavy Machine Gun destroyed. 12266_ Imp. Heat Sink destroyed. 12266_ System corrupted by crushing effect (+5). 12266_ System corrupted by crushing effect (+4). 12270_ Released Adv. Signal Interpreter. 12270_ Released Hcp. Storage Unit. 12270_ Released Cold Fusion Reactor. 12270_ Released Flexi-carbon Leg. 12270_ Released Imp. Hardlight Generator. 12270_ Released Imp. Core Shielding. 12270_ Released Hvy. Battle Rifle. 12270_ Released Mak. Shrapnel Gun. 12270_ Released Magnetic Acceleration Cannon. 12270_ Acquired 3 matter. 12275_ Acquired 5 matter. 12332_ Acquired derelict log, extracted data. Data stored: Factory zone layouts (x4). 12353_ Slug penetrates Wall. 12354_ Penetrated by Slug. Map ----- +----------------------------------------------------+ | ?????????????????????????????????????????????????? | | ?????????????????????????????????????????????????? | | ?????????????????????????????????????????????????? | | ?????????????????????????????????????????????????? | | ?????????????????????????????????????????????????? | | ?????????????????????????????????????????????????? | | ?????????????????????????????????????????????????? | | ?????????????????????????????????????????????????? | | ?????????????????????????????????????????????????? | | ?????????????????????????????????????????????????? | | ?????????????????????????????????????????????????? | | ?????????????????????????????????????????????????? | | ?????????????????????????????????????????????????? | | ?????????????????????????????????????????????????? | | ?????????????????????????????????????????????????? | | ?????????????????????????????????????????????????? | | ????????????????????????????????????###??????????? | | ??????????????????????????????????## ##?????????? | | ??????????????????????????????????# #?????????? | | ?????????????????????????????????## #?????????? | | ?????????????????????????????????# ##?????????? | | ????????????????????????????????## ##??????????? | | ?????????????????????????????#### ##??????????? | | ????????????????????????????## ##?????????? | | ???????????????""""" ####### ###???????? | | ???????????????"" " h@ ##??????? | | ???????????????#" " h ## #??????? | | ???????????????##"" ######## ### #??????? | | ####?????????? ????????# #?# #??????? | | # #???????? ?????##### ##?# #??????? | | # #???????? #####???????# ## #??# ##?????? | | # ##????????????????????## ##??# #?????? | | #####???????????????## ##### #?????? | | #??????????????## ## ##????? | | #???????##?????# #????? | | !!## #?????## ##????# ##### #????? | | #[%= #????# ##???# #????###### #????? | | ##%[![ #???# #?### ??????????## #????? | | #!!]!###??# ?? ???####????## #????? | | #] ]!["### #??? ## ??## ##????## #????? | | ##|!* #???# ###???# ##????# #????? | | ###!]% ###???# #??????# ###?## #????? | | ## ##?????# #?????## ### ##????? | | # #####???## #??#### #?????? | | ##### #??# ## #?????? | | %* % #??# ### #????? | | ## %% % ##?## #?## #????? | | ##?## % ##### #??#### #??#### #????? | | ????## #???# ####??## ##????## ##????? | | ?????# # #?### #???## #?????###?????? | +----------------------------------------------------+ Best States ------------- Heat Dissipation 76 Energy Generation 39 Energy Capacity 450 Matter Stores 300 Matter Capacity 300 Sight Range 16 Robot Scan Range 15 Terrain Scan Density 10 Jamming Range 12 Base Temperature (-) 100 Armor Coverage 450 Core Shielding 30 Weapon Shielding 100 Evasion (%) 50 Recoil Reduction 3 Item Schematics ----------------- None Robot Schematics ------------------ None Fabricated ------------ Nothing Repaired ---------- Nothing Alien Tech Used ----------------- None Achievements -------------- None Challenges ------------ None Game ------ Seed DataNavigationExtrapolator Manual? 0 Play Time 01:02:33 Cumulative 73.6 hours Start 2025.06.11 @ 19:32:44 End 2025.06.11 @ 20:32:26 Sessions 1 Manual Loads 0 Difficulty Rogue Special Mode None Game No. 99 Rogue 99 Adventurer 0 Explorer 0 Win Type - Total 1 Types 1/0/0/0/0/0/0/0/0/0 Lore% 32 Gallery% 45 Achievement% 39 Wizard Run 0 Options --------- Layout 1 ASCII 0 Keyboard 0 Movement Arrows Keybinds 0 Fullscreen 1 Font 24/Smallcaps Map View 50x35 Zoom Use 0% Tactical HUD 1 Map Filters NONE Filters NONE Steam X RUN: 98b787d7-e804-426d-b473-7332cdd67ca2